Cogmind - Beta 16.1 @@@ ROGUE MODE // 2026.04.12 @ 03:33:25 Player: KURIIRI Result: Destroyed by Y-64 Sentinel with KE Penetrator Performance ------------- Evolutions (5) 2500 Regions Visited (14) 2800 Robots Destroyed (331) 1655 Value Destroyed (15211) 15211 Prototype IDs (46) 920 Alien Tech Used (0) 0 Bonus (10254) 10254 TOTAL SCORE: 33340 Bonus ------- Triggered High Security 1000 High Alert Combat Kills 6752 Follower Combat Kills 2012 Entered Garrisons 400 Used RIF Installer 1000 Registered with UFD 300 Met Optimus in HQ 500 Met Data Miner 300 Friendly Fire -2010 Cogmind --------- Core Integrity 0/1000 Matter 21/300 Energy 93/100 System Corruption 15% Temperature Cool (9) Movement Rolling (105) Ox1 Location -5/Factory Parts ------- > --- POWER (1) -------- (None) > --- PROPULSION (4) --- Armored Huge Wheel > --- UTILITY (6) ------ High-capacity Storage Unit Experimental Targeting Computer Improved Target Analyzer Experimental Core Analyzer Improved Medium Armor Plating > --- WEAPON (6) ------- (None) > --- INVENTORY (20) --- Flexi-carbon Leg Improved VSS Leg Improved VSS Leg Advanced Heat Sink Experimental Heat Sink Long-range Sensor Array Advanced Signal Interpreter Improved Weapon Cycler Experimental Reaction Control System Improved Medium Armor Plating Advanced Hacking Suite Relay Coupler [Grunt] (19) Improved System Guard Enhanced Gamma Bomb Array Improved Plasma Cutter Peak State ------------ > --- POWER ------------ Graviton Reactor > --- PROPULSION ------- Enhanced Biometal Leg Experimental Biometal Leg Experimental Biometal Leg Experimental Biometal Leg > --- UTILITY ---------- High-capacity Storage Unit Advanced Targeting Computer Improved Target Analyzer Experimental Core Analyzer Experimental Core Analyzer Improved Medium Armor Plating > --- WEAPON ----------- Gauss Rifle Gauss Rifle Gauss Rifle Gauss Rifle KE Penetrator Neutron Missile Launcher > --- INVENTORY -------- Graviton Reactor Graviton Reactor Flexi-carbon Leg Compact Wheel Advanced Heat Sink Matter Compressor Long-range Sensor Array Advanced Signal Interpreter Improved Kinecellerator Improved Weapon Cycler Experimental Reaction Control System Improved Medium Armor Plating Experimental Shield Generator Gauss Rifle KE Penetrator Enhanced Coil Gun Improved Proton Missile Launcher Enhanced Gamma Bomb Array Improved Plasma Cutter Phasing Sabre [Rating: 123] Favorites ----------- Power Reinforced Deuterium Engine Engine Reinforced Deuterium Engine Power Core Fission Core Reactor Light Antimatter Reactor Propulsion Armored Huge Wheel Treads Improved Medium Treads Leg Experimental Biometal Leg Wheel Armored Huge Wheel Flight Unit Improved Q-thruster Utility High-capacity Storage Unit Device Improved Kinecellerator Storage High-capacity Storage Unit Processor Improved Target Analyzer Hackware Hacking Suite Protection Improved Medium Armor Plating Weapon Heavy Machine Gun Energy Gun Small Laser Energy Cannon Cooled Plasma Cannon Ballistic Gun Heavy Machine Gun Launcher Subdweller Shrapnel Launcher Special Weapon Multitool Slashing Weapon Makeshift Sword Build | -11 -10 -10 -9 -6 -6 -6 -6 -6 -5 -5 -5 -5 -5 -5 ------- Run | Yrd Mat Sub Scr Fac Gar Fac Low Dat Pro Fac Was Fac Gar Fac Slots Evolved 10 | . . . . 8 . . . . . 2 . . . . Power . | . . . . . . . . . . . . . . . Propulsion 2 | . . . . 2 . . . . . . . . . . Utility 4 | . . . . 2 . . . . . 2 . . . . Weapon 4 | . . . . 4 . . . . . . . . . . Parts Attached 188 | 3 2 10 2 44 14 12 1 . 2 19 6 33 22 18 Power 12 | . . . 1 2 1 . . . . 2 . 4 1 1 Engine 3 | . . . 1 1 1 . . . . . . . . . Core 3 | . . . . . . . . . . 1 . 1 1 . Reactor 6 | . . . . 1 . . . . . 1 . 3 . 1 Propulsion 38 | 2 1 3 1 6 4 3 . . . 1 2 9 2 4 Treads 15 | 2 . 1 . 3 3 3 . . . 1 2 . . . Leg 9 | . . . . . . . . . . . . 5 2 2 Wheel 13 | . 1 2 1 3 1 . . . . . . 3 . 2 Hover . | . . . . . . . . . . . . . . . Flight 1 | . . . . . . . . . . . . 1 . . Utility 60 | 1 1 1 . 11 5 4 1 . . 9 3 7 9 8 Device 22 | 1 . . . 5 1 1 1 . . 5 3 1 2 2 Storage 3 | . 1 1 . . . 1 . . . . . . . . Processor 8 | . . . . 1 1 . . . . 2 . 3 1 . Hackware 9 | . . . . 3 . 1 . . . 1 . 1 1 2 Protection 18 | . . . . 2 3 1 . . . 1 . 2 5 4 Artifact . | . . . . . . . . . . . . . . . Weapon 78 | . . 6 . 25 4 5 . . 2 7 1 13 10 5 Energy Gun 12 | . . 2 . 6 . . . . . 2 . . 2 . Energy Cannon 3 | . . . . 3 . . . . . . . . . . Ballistic Gun 54 | . . 2 . 14 4 4 . . 2 4 . 11 8 5 Ballistic Cannon . | . . . . . . . . . . . . . . . Launcher 5 | . . 1 . 1 . . . . . 1 1 1 . . Special Weapon 2 | . . . . 1 . 1 . . . . . . . . Impact Weapon . | . . . . . . . . . . . . . . . Slashing Weapon 2 | . . 1 . . . . . . . . . 1 . . Piercing Weapon . | . . . . . . . . . . . . . . . Special Melee Weapon . | . . . . . . . . . . . . . . . Unidentified Prototypes 19 | . . . . 4 2 . . . . . 2 10 1 . Parts Lost 64 | . . 5 . 3 7 1 . . 6 9 . 12 10 11 Power 3 | . . 1 . . 1 . . . . . . . . 1 Propulsion 11 | . . 2 . 1 1 . . . . 1 . 2 2 2 Utility 15 | . . . . 1 2 . . . 1 3 . 3 2 3 Weapon 35 | . . 2 . 1 3 1 . . 5 5 . 7 6 5 Highest Loss Streak 10 | . . 2 . 1 4 1 . . 3 3 . 6 4 10 To Critical Strikes 2 | . . . . . . . . . 1 . . . 1 . Average Backups 17 | 5 5 19 20 14 13 14 17 19 19 18 19 19 16 18 Power 1 | 1 1 2 1 . . . 2 2 2 2 1 1 1 . Propulsion 1 | 3 2 2 1 1 1 1 1 1 1 2 2 1 2 3 Utility 7 | . 1 5 8 5 4 6 7 9 9 8 9 10 7 9 Weapon 5 | 1 1 7 8 5 5 5 6 6 4 4 5 5 4 3 Tool/Special . | . . . . . . . . . . . . . . . Unused Backups 57 | . . . 14 15 3 1 . . . 3 1 4 3 13 Power 6 | . . . 3 1 . . . . . 1 . 1 . . Propulsion 8 | . . . 1 3 . . . . . . . . 1 3 Utility 26 | . . . 5 5 3 . . . . 2 . 1 2 8 Weapon 15 | . . . 5 6 . . . . . . 1 2 . 1 Tool/Special 2 | . . . . . . 1 . . . . . . . 1 Average Slot Usage (%) 86 | . 100 69 79 91 91 92 93 93 89 91 89 88 87 92 Engine 3 | . 14 . 8 1 3 6 6 6 6 1 . . . . Core 1 | . . . . . . . . . . 2 5 2 1 4 Reactor 1 | . . . . 4 2 . . . . . . 2 3 . Treads 7 | . 17 12 1 10 13 13 13 13 13 10 6 4 . . Leg 2 | . . . . . . . . . . . . 2 21 19 Wheel 10 | . 10 15 26 7 5 6 6 6 6 4 5 5 . 1 Device 6 | . 14 . . 6 10 12 13 13 12 11 10 6 5 4 Storage 8 | . 14 14 14 6 6 6 6 6 6 5 5 5 5 5 Processor 4 | . . . . 1 . . . . . 6 11 12 17 17 Hackware 1 | . . . . 4 . . . . . 2 . 2 . . Protection 3 | . . . . 5 7 6 6 6 6 4 5 4 4 4 Energy Gun 5 | . 14 10 14 1 . . . . . 5 11 1 3 2 Energy Cannon 1 | . . . . 9 . . . . . . . . . . Ballistic Gun 21 | . 14 6 . 26 33 39 40 40 36 27 22 31 15 27 Slashing Weapon 3 | . . 2 14 . 3 . . . . . . . 2 . Peak Build Rating 123 | 7 7 14 17 74 73 72 73 73 73 88 95 123 113 110 Average Rating 58 | 6 7 11 14 64 66 67 71 73 70 82 91 91 102 99 On Entrance 56 | 6 7 7 14 16 73 70 70 73 73 70 88 92 100 95 Avg Prop Armor Cover (%) 8 | . 13 13 15 8 7 7 8 8 8 8 8 8 . 6 Naked Turns . | . . . . . . . . . . . . . . . Heaviest Build 212 | 12 27 212 208 79 82 98 99 99 99 103 90 103 95 94 Greatest Support 114 | 40 40 36 26 56 56 52 28 28 28 58 70 114 114 88 Greatest Overweight (x) 13 | . 1 13 12 6 2 3 3 3 3 3 3 3 1 3 Average Overweight (x) 3 | . . 11 7 1 1 2 3 3 3 2 2 2 . . Largest Inventory Capacity 35 | 8 15 35 35 35 15 20 20 20 20 20 20 20 20 20 Average Capacity 22 | 8 13 34 35 15 15 15 20 20 20 20 20 20 20 20 Most Carried 28 | 6 7 26 28 23 15 17 19 19 20 20 20 20 20 20 Average Carried 18 | 5 5 20 21 14 14 14 17 19 19 18 19 19 17 19 Final Capacity 35 | 8 15 35 35 15 15 20 20 20 20 20 20 20 20 20 Final Carried 26 | 4 7 26 24 15 12 17 19 19 19 20 20 18 20 15 Class Distribution -------------------- 49% | Scavenger-Executioner 29% | Hauler-Mutant 12% | Executioner 3% | Mutant Dominant Class ---------------- Mutant | -10/Materials Hauler-Mutant | -10/Subcaves Hauler-Mutant | -9/Scraptown Scavenger-Executioner | -6/Factory Executioner | -6/Garrison Scavenger-Executioner | -6/Factory Scavenger-Executioner | -6/Lower Caves Scavenger-Executioner | -6/Data Miner Executioner | -5/Proximity Caves Scavenger-Executioner | -5/Factory Scavenger-Executioner | -5/Waste Scavenger-Executioner | -5/Factory Scavenger-Executioner | -5/Garrison Scavenger-Executioner | -5/Factory Resources | -11 -10 -10 -9 -6 -6 -6 -6 -6 -5 -5 -5 -5 -5 -5 ----------- Run | Yrd Mat Sub Scr Fac Gar Fac Low Dat Pro Fac Was Fac Gar Fac Matter Collected 11685 | 208 70 181 106 2244 1077 1265 . . 592 1306 379 2151 1297 809 Remotely . | . . . . . . . . . . . . . . . Salvage Created 16087 | 127 428 284 . 2296 1106 1285 . . 533 2609 394 3252 1604 2169 Parts 766 | 5 30 22 . 101 68 59 . . 25 138 13 145 66 94 Haulers Intercepted 8 | . . . . 2 . 1 . . . 1 . 4 . . Recyclers Shooed 9 | . 1 . . 2 . . . . . 3 . 3 . . Parts Field Recycled . | . . . . . . . . . . . . . . . Retrieved Matter . | . . . . . . . . . . . . . . . Parts Self-Destructed 25 | . . 2 . . . . . . 23 . . . . . Prevented . | . . . . . . . . . . . . . . . Parts Restored . | . . . . . . . . . . . . . . . Kills | -11 -10 -10 -9 -6 -6 -6 -6 -6 -5 -5 -5 -5 -5 -5 ------- Run | Yrd Mat Sub Scr Fac Gar Fac Low Dat Pro Fac Was Fac Gar Fac Combat Hostiles Destroyed 267 | . 7 7 . 33 20 25 . . 12 40 . 46 40 37 Melee 4 | . . 2 . . . . . . . . . 1 1 . Guns 212 | . 5 1 . 31 20 25 . . 12 37 . 37 16 28 Cannons 2 | . . . . 2 . . . . . . . . . . AOE 49 | . 2 4 . . . . . . . 3 . 8 23 9 Classes Destroyed 26 | 2 2 2 . 8 4 2 . . . . . 5 1 . Worker 8 | . . . . 2 . . . . . 2 . 3 . 1 Builder 15 | . 2 . . 1 . . . . . 2 . 6 . 4 Tunneler 2 | 1 . . . . . . . . . . . 1 . . Hauler 8 | . . . . 2 . 1 . . . 1 . 4 . . Recycler 7 | 1 1 . . 1 . 1 . . . 2 . . . 1 Mechanic 1 | . . . . . . . . . . . . . . 1 Operator 9 | . . . . 2 . 1 . . . 2 . 2 . 2 Watcher 10 | . . . . 2 . 1 . . . 4 . 2 . 1 Swarmer 51 | . . . . . 7 6 . . 6 12 . 9 8 3 Saboteur 6 | . . . . . . . . . . . . 1 4 1 Grunt 104 | . 7 2 . 19 2 3 . . . 18 . 15 15 23 Brawler 9 | . . . . 1 2 . . . . . . 1 1 4 Duelist 3 | . . . . . . . . . . . . 1 1 1 Protector 2 | . . . . . . . . . . . . 2 . . Sentry 26 | . . . . 4 3 4 . . 1 2 . 2 6 4 Demolisher 3 | . . . . . . 2 . . . . . . . 1 Specialist 2 | . . . . . . . . . . . . 2 . . Hunter 22 | . . . . 4 . . . . 4 4 . 7 3 . Programmer 21 | . . . . 5 4 2 . . 1 4 . 5 . . Behemoth 2 | . . . . . 1 . . . . . . 1 . . Striker 2 | . . . . . 1 . . . . . . . 1 . Executioner 1 | . . . . . . . . . . . . . 1 . Artisan 1 | . . 1 . . . . . . . . . . . . Subdweller 5 | . . 5 . . . . . . . . . . . . Scrapoid 3 | . . . . . 1 . . . . . 1 . . 1 Assembled 8 | . . . . . . 8 . . . . . . . . Surgeon 1 | . . . . . . . . . . . . 1 . . Thug 3 | . . . . . . . . . . . . 3 . . Martyr 5 | . . . . . . . . . . . 5 . . . Best Kill Streak 15 | 2 10 4 . 5 4 10 . . 4 12 . 15 13 15 Combat Bots Only 14 | . 7 4 . 5 4 10 . . 4 11 . 9 13 14 Max Kills in Single Turn 10 | 1 3 1 . 2 2 3 . . 2 3 1 10 9 4 Gunslinging 3 | . . . . 1 . 1 . . 1 1 . 2 . 3 Exploded 9 | . 2 1 . . . . . . . 1 . 5 9 2 Melee 1 | . . 1 . . . . . . . . . 1 1 . Uniques/NPCs Destroyed . | . . . . . . . . . . . . . . . Combat | -11 -10 -10 -9 -6 -6 -6 -6 -6 -5 -5 -5 -5 -5 -5 -------- Run | Yrd Mat Sub Scr Fac Gar Fac Low Dat Pro Fac Was Fac Gar Fac Hostile Shots Fired 1157 | . 23 27 . 152 103 78 . . 80 154 . 225 163 152 Missed 325 | . 6 7 . 46 26 22 . . 14 50 . 62 35 57 Hits 832 | . 17 20 . 106 77 56 . . 66 104 . 163 128 95 Melee 23 | . . . . . 6 4 . . . . . 3 6 4 Projectile 809 | . 17 20 . 106 71 52 . . 66 104 . 160 122 91 AOE 4 | . . 1 . . . 2 . . . . . . . 1 Critical Strikes 28 | . . . . 3 5 . . . 3 3 . 4 5 5 Part Disruptions 2 | . . . . 1 . . . . . . . 1 . . Damage Taken 16057 | . 263 534 . 1822 1516 646 . . 1229 1864 . 3401 2739 2043 Core 1693 | . 53 96 . 216 176 33 . . 98 109 . 268 426 218 Absorbed by Shields 483 | . . . . . 23 . . . . . . . 460 . Reduced by Siege Mode 28 | . . . . . . . . . . . . 28 . . Regen/Repaired (Parts) 1539 | . . . . 103 . . . . . 383 300 753 . . Core Remaining (%) 59 | 100 . . 40 . . . . . 38 . . . . . Volleys Fired 517 | 8 22 20 . 74 53 33 . . 21 71 7 73 97 38 Largest 6 | 2 2 2 . 6 6 6 . . 6 6 6 6 6 6 Hottest 265 | 60 60 90 . 195 186 179 . . 179 265 265 265 226 226 Shots Fired 2104 | 16 44 28 . 362 232 173 . . 117 349 43 384 187 169 Gun 2015 | 16 44 21 . 313 226 170 . . 117 346 43 381 175 163 Cannon 51 | . . . . 48 3 . . . . . . . . . Launcher 32 | . . 7 . 1 . . . . . 3 . 3 12 6 Special 6 | . . . . . 3 3 . . . . . . . . Kinetic 1859 | 8 22 19 . 300 226 170 . . 117 293 29 378 140 157 Thermal 171 | . . 6 . 48 6 . . . . 53 14 3 35 6 Explosive 17 | . . . . . . . . . . . . 3 8 6 Electromagnetic 54 | 8 22 3 . 14 . . . . . 3 . . 4 . Robot Hit Streak 21 | 2 9 6 . 15 9 16 . . 14 17 11 16 21 16 Robot Miss Streak 8 | 3 2 2 . 6 8 2 . . 4 4 1 3 2 4 Penetration Max 2 | . . . . 1 1 1 . . 1 1 1 1 2 1 Secondary Targets 56 | . . . . 5 1 10 . . 4 14 . 10 1 11 Max Gunslinging Chain 3 | . . . . 2 1 2 . . 2 1 . 2 1 3 Shots Hit Robots 1252 | 7 30 22 . 210 128 111 . . 73 187 26 212 135 111 Core Hits 685 | 3 18 11 . 82 50 52 . . 25 103 18 130 105 88 Critical Kills 39 | . . . . 1 8 2 . . 1 3 2 8 4 10 Critical Parts Destroyed 55 | . . . . 5 8 8 . . 3 7 2 11 5 6 Critical Strikes 111 | . 1 . . 6 17 12 . . 4 14 4 21 14 18 Burn 6 | . . . . . . . . . . 4 . . 2 . Destroy 102 | . . . . 6 17 12 . . 4 10 4 21 10 18 Corrupt 1 | . 1 . . . . . . . . . . . . . Sever 2 | . . . . . . . . . . . . . 2 . Melee Attacks 90 | . . 11 . 3 45 2 . . . . . 4 25 . Impact . | . . . . . . . . . . . . . . . Slashing 90 | . . 11 . 3 45 2 . . . . . 4 25 . Piercing . | . . . . . . . . . . . . . . . Sneak Attacks . | . . . . . . . . . . . . . . . Combat Hostiles . | . . . . . . . . . . . . . . . Follow-up Attacks . | . . . . . . . . . . . . . . . Damage Inflicted 39426 | 63 443 798 . 5581 2414 2599 . . 1543 5325 863 8160 6532 5105 Guns 28388 | 63 325 156 . 4507 2391 2599 . . 1543 4861 863 6053 2716 2311 Cannons 941 | . . . . 941 . . . . . . . . . . Explosions 9485 | . 110 390 . 88 . . . . . 455 . 2084 3564 2794 Melee 549 | . . 252 . 45 . . . . . . . . 252 . Ramming 40 | . 8 . . . . . . . . 9 . 23 . . Kinetic 26574 | 51 85 505 . 4395 2391 2599 . . 1543 4013 535 6032 2188 2237 Thermal 4760 | . 110 19 . 987 23 . . . . 925 328 948 609 811 Explosive 6486 | . . . . . . . . . . . . 1157 3272 2057 Electromagnetic 1017 | 12 240 22 . 154 . . . . . 378 . . 211 . Impact . | . . . . . . . . . . . . . . . Slashing 549 | . . 252 . 45 . . . . . . . . 252 . Piercing . | . . . . . . . . . . . . . . . Highest Corruption 15 | . . . . 4 2 2 2 2 2 3 3 15 15 15 Average Corruption 6 | . . . . 2 2 2 2 2 2 2 2 8 15 15 Corruption Purged 7 | . . . . 4 . . . . . . 3 . . . Corruption Blocked . | . . . . . . . . . . . . . . . Effects 219 | . . . . 6 4 23 3 . 8 8 4 77 52 34 Message Errors 49 | . . . . 4 1 6 1 . 1 1 2 16 11 6 Matter Fused 51 | . . . . . . 6 1 . 3 3 1 16 13 8 Heat Flow Errors 26 | . . . . 1 . 5 1 . . . . 7 9 3 Energy Discharges 20 | . . . . . . . . . 1 . . 13 4 2 Parts Rejected 5 | . . . . . . . . . . 1 . 1 2 1 Parts Fused 1 | . . . . . . . . . . . . . . 1 Data Loss (minor) 22 | . . . . . 1 3 . . 2 2 . 5 7 2 Data Loss (major) 9 | . . . . . . . . . 1 . . 2 2 4 Misfires 10 | . . . . . . 1 . . . . 1 3 1 4 Alerts 3 | . . . . . 1 1 . . . . . . . 1 Weapon Failures 23 | . . . . 1 1 1 . . . 1 . 14 3 2 Overload Shots . | . . . . . . . . . . . . . . . Overflow Damage 420 | . . . . 40 . . . . . . . 124 179 77 Projectiles 14 | . . . . 14 . . . . . . . . . . Explosions 396 | . . . . 16 . . . . . . . 124 179 77 Melee 10 | . . . . 10 . . . . . . . . . . Knockbacks . | . . . . . . . . . . . . . . . Impact . | . . . . . . . . . . . . . . . Kinetic . | . . . . . . . . . . . . . . . Secondary . | . . . . . . . . . . . . . . . Self-Inflicted Damage 205 | . 44 . . 102 . . . . . 6 . . 53 . Shots 5 | . 1 . . 2 . . . . . 1 . . 1 . Rammed 2 | . 1 . . . . . . . . 1 . . . . Targets Rammed 4 | . 1 . . . . . . . . 1 . 2 . . Kicked 2 | . . . . . . . . . . . . 2 . . Crushed . | . . . . . . . . . . . . . . . Highest Temperature 553 | 40 177 . . 429 233 163 145 . 115 394 398 553 399 191 Average Temperature 112 | 21 78 . . 141 41 26 74 . 33 127 181 144 106 55 Received Heat Transfer 2801 | . 117 123 . 477 108 75 . . 54 429 . 282 460 676 Effects 21 | . . . . 9 . . . . . 5 . 7 . . Shutdowns 5 | . . . . 3 . . . . . . . 2 . . Energy Bleed 2 | . . . . 1 . . . . . . . 1 . . Interference 6 | . . . . 1 . . . . . 5 . . . . Matter Decay 2 | . . . . 1 . . . . . . . 1 . . Short Circuit 1 | . . . . . . . . . . . . 1 . . Damage (minor) 2 | . . . . . . . . . . . . 2 . . Damage (major) 3 | . . . . 3 . . . . . . . . . . Siege Activations 5 | . . . . . . . . . . . . 5 . . Total Turns 57 | . . . . . . . . . . . . 57 . . Longest Duration 18 | . . . . . . . . . . . . 18 . . Martial Activations . | . . . . . . . . . . . . . . . Shielding Activations . | . . . . . . . . . . . . . . . Robots Disrupted 1 | . . . . . . . . . . . . 1 . . Combat Hostiles 1 | . . . . . . . . . . . . 1 . . Robots Corrupted . | . . . . . . . . . . . . . . . Combat Hostiles . | . . . . . . . . . . . . . . . Parts Fried 2 | . . . . 1 . . . . . 1 . . . . Impact Corruptions . | . . . . . . . . . . . . . . . Robots Melted . | . . . . . . . . . . . . . . . Combat Hostiles . | . . . . . . . . . . . . . . . Parts Melted 16 | . 1 . . 6 1 . . . . 3 1 . 2 2 Heat Transferred 7250 | . 100 25 . 1500 75 . . . . 2194 597 775 1186 798 Parts Sabotaged 9 | . . . . . . . . . . . . 4 . 5 Parts Stolen . | . . . . . . . . . . . . . . . Parts Stripped . | . . . . . . . . . . . . . . . Power Chain Reactions 8 | . 1 . . 1 . . . . . 1 . 3 1 1 Alert | -11 -10 -10 -9 -6 -6 -6 -6 -6 -5 -5 -5 -5 -5 -5 ------- Run | Yrd Mat Sub Scr Fac Gar Fac Low Dat Pro Fac Was Fac Gar Fac Maximum Alert Level 5 | . . . . 2 4 4 . . . 3 1 5 5 5 Low Security (%) 29 | 100 100 . . 77 . . . . . 32 79 15 . . Level 1 9 | . . . . 6 . . . . . 27 20 15 . . Level 2 12 | . . . . 16 18 . . . . 37 . 12 . . Level 3 16 | . . . . . 18 92 . . . 1 . 12 . . Level 4 15 | . . . . . 62 7 . . . . . 31 11 19 Level 5 13 | . . . . . . . . . . . . 10 88 36 High Security 3 | . . . . . . . . . . . . 2 . 43 Max Security . | . . . . . . . . . . . . . . . Peak Influence 4080 | 5 198 . . 625 1502 1132 . . . 765 266 1963 2916 4080 Initial 1530 | . . . . . 434 788 . . . 13 266 . 1373 1530 Average 859 | 2 82 . . 154 1055 859 . . . 343 110 901 2188 2524 Influence Increases 12874 | 10 228 50 . 1407 1198 1006 . . 270 1366 18 2772 1643 2906 Destroy 0b10 Robot/C 6200 | . 140 40 . 700 660 500 . . 240 820 . 1160 900 1040 Destroy 0b10 Robot/NC 390 | 10 15 . . 55 . 30 . . . 65 . 100 10 105 Destroy Leader 1044 | . 40 10 . 208 30 156 . . 30 170 . 202 30 168 Allied During Kill 1705 | . . . . 13 201 191 . . . 20 . 708 125 447 Successful Hack 183 | . . . . 82 7 60 . . . . . 34 . . Select Force Hacks 60 | . 30 . . 30 . . . . . . . . . . Disable Machine 1260 | . . . . 285 . 45 . . . 120 . 255 45 510 Anti-Garrison Action 450 | . . . . . 150 . . . . . . . 150 150 Destroy Structure 1357 | . 3 . . 34 90 9 . . . 126 18 238 353 486 Partial Spotted 30 | . . . . . . . . . . 30 . . . . Lose Combat Pursuer 195 | . . . . . 60 15 . . . 15 . 75 30 . Influence Decreases 8854 | 10 50 228 . 786 317 1693 442 373 248 627 779 810 689 1802 Entered New Map 4141 | . . 86 . . 187 714 302 373 . 9 495 . 589 1386 Time Decay 3019 | 10 50 122 . 441 . 534 140 . 198 508 284 526 . 206 Lost Part 590 | . . 20 . 20 70 10 . . 50 90 . 120 100 110 Lost Ally 444 | . . . . 40 60 60 . . . 20 . 164 . 100 Purge Threat 660 | . . . . 285 . 375 . . . . . . . . Squads Dispatched 69 | . 3 . . 18 . 7 . . . 9 . 14 . 18 Investigation 21 | . 2 . . 9 . 1 . . . 4 . 3 . 2 Extermination 10 | . . . . 4 . 2 . . . 1 . 3 . . Reinforcement 15 | . 1 . . 4 . 2 . . . 2 . 4 . 2 Assault 20 | . . . . 1 . 2 . . . 1 . 4 . 12 Garrison 3 | . . . . . . . . . . 1 . . . 2 Intercept . | . . . . . . . . . . . . . . . Searches Triggered . | . . . . . . . . . . . . . . . Data Miner Redirects 6 | . . . . . . . . . . . . 2 . 4 Construction Impeded 3 | . . . . 1 . 1 . . . . . . . 1 Haulers Reinforced 2 | . . . . 1 . . . . . . . 1 . . Active Scanning Responses . | . . . . . . . . . . . . . . . Cargo Convoy Interrupts 2 | . . . . . . . . . . 1 . 1 . . Stealth | -11 -10 -10 -9 -6 -6 -6 -6 -6 -5 -5 -5 -5 -5 -5 --------- Run | Yrd Mat Sub Scr Fac Gar Fac Low Dat Pro Fac Was Fac Gar Fac Distress Signals 14 | . 2 . . 2 . 1 . . . 2 . 3 . 4 Communications Jammed . | . . . . . . . . . . . . . . . Distress Signals . | . . . . . . . . . . . . . . . Times Spotted 397 | . 12 9 . 40 34 39 . . 12 52 . 75 37 87 Peak Tracking Total 17 | . 4 2 . 4 4 6 . . 4 12 . 12 7 17 Tactical Retreats 11 | . . . . . 4 1 . . . 1 . 3 2 . Traps | -11 -10 -10 -9 -6 -6 -6 -6 -6 -5 -5 -5 -5 -5 -5 ------- Run | Yrd Mat Sub Scr Fac Gar Fac Low Dat Pro Fac Was Fac Gar Fac Traps Triggered 21 | . . 1 . 4 5 1 . . . 2 . 5 2 1 Indirectly . | . . . . . . . . . . . . . . . Trap Hack Attempts . | . . . . . . . . . . . . . . . Triggered . | . . . . . . . . . . . . . . . Disarmed . | . . . . . . . . . . . . . . . Reprogrammed . | . . . . . . . . . . . . . . . Reused . | . . . . . . . . . . . . . . . Traps Extracted . | . . . . . . . . . . . . . . . Installed . | . . . . . . . . . . . . . . . Triggered . | . . . . . . . . . . . . . . . Machines | -11 -10 -10 -9 -6 -6 -6 -6 -6 -5 -5 -5 -5 -5 -5 ---------- Run | Yrd Mat Sub Scr Fac Gar Fac Low Dat Pro Fac Was Fac Gar Fac Machines Disabled 91 | . . 1 . 19 2 3 . . . 8 . 17 6 35 Max in Single Turn 7 | . . 1 . 7 1 2 . . . 1 . 4 1 6 Garrison Access 8 | . . . . 2 . 2 . . . 1 . 1 . 2 Garrison Relay 2 | . . . . . 1 . . . . . . . 1 . Phase Generator 1 | . . . . . . . . . . . . . 1 . Machines Repaired . | . . . . . . . . . . . . . . . Machines Dismantled . | . . . . . . . . . . . . . . . Machines Sabotaged . | . . . . . . . . . . . . . . . Overloaded Fab Kills . | . . . . . . . . . . . . . . . Hacking | -11 -10 -10 -9 -6 -6 -6 -6 -6 -5 -5 -5 -5 -5 -5 --------- Run | Yrd Mat Sub Scr Fac Gar Fac Low Dat Pro Fac Was Fac Gar Fac Machines Accessed 73 | . 2 1 1 23 2 12 1 4 . 8 . 12 2 5 Terminals 29 | . 1 . . 7 2 6 . . . 3 . 6 2 2 Fabricators 6 | . . . . 3 . 1 . . . . . 2 . . Repair Stations 6 | . . . . 1 . 2 . . . 2 . 1 . . Recycling Units 12 | . 1 . . 7 . . . . . 2 . . . 2 Scanalyzers 4 | . . . . 2 . 1 . . . . . 1 . . Garrison Access 9 | . . . . 3 . 2 . . . 1 . 2 . 1 Total Hacks 164 | . 3 1 4 49 3 24 1 34 . 13 . 22 3 7 Successful 101 | . 2 1 4 29 2 8 1 34 . 7 . 9 1 3 Failed 62 | . 1 . . 19 1 16 . . . 6 . 13 2 4 Catastrophic 11 | . 1 . . 3 . 4 . . . 2 . 1 . . Database Lockouts 1 | . . . . 1 . . . . . . . . . . Manual 63 | . 3 . . 28 1 12 . . . 7 . 8 . 4 Terminals 59 | . 1 . . 19 3 14 . . . 5 . 11 3 3 Fabricators 12 | . . . . 4 . 3 . . . . . 5 . . Repair Stations 12 | . . . . 4 . 3 . . . 4 . 1 . . Recycling Units 16 | . 2 . . 8 . . . . . 3 . . . 3 Scanalyzers 16 | . . . . 11 . 2 . . . . . 3 . . Garrison Access 9 | . . . . 3 . 2 . . . 1 . 2 . 1 Terminal Hacks 54 | . . 1 4 6 2 1 1 34 . 1 . 3 1 . Record 15 | . . . 4 . . . . 11 . . . . . . Part Schematic 13 | . . . . . . . . 13 . . . . . . Robot Schematic 7 | . . . . . . . . 7 . . . . . . Robot Analysis 1 | . . . . 1 . . . . . . . . . . Prototype ID Bank 4 | . . . . 1 . . . 3 . . . . . . Open Door 2 | . . . . . 1 . 1 . . . . . . . Branch Access Points 2 | . . . . . . 1 . . . 1 . . . . Emergency Access Points 1 | . . . . . . . . . . . . . 1 . Terminal Index 2 | . . . . 1 . . . . . . . 1 . . Unreport Threat 2 | . . . . 2 . . . . . . . . . . Locate Traps 2 | . . . . . . . . . . . . 2 . . Recall Investigation 1 | . . . . 1 . . . . . . . . . . Garrison Registry 1 | . . . . . 1 . . . . . . . . . Proto ID Catalog 1 | . . 1 . . . . . . . . . . . . Fabricator Hacks 1 | . . . . 1 . . . . . . . . . . Network Status 1 | . . . . 1 . . . . . . . . . . Repair Station Hacks 4 | . . . . 1 . 1 . . . 2 . . . . Scan Component 3 | . . . . 1 . 1 . . . 1 . . . . Repair 1 | . . . . . . . . . . 1 . . . . Recycling Unit Hacks . | . . . . . . . . . . . . . . . Scanalyzer 6 | . . . . 4 . 1 . . . . . 1 . . Insert Component 1 | . . . . 1 . . . . . . . . . . Retrieve Study 5 | . . . . 3 . 1 . . . . . 1 . . Garrison Access Hacks 9 | . . . . 3 . 2 . . . 1 . 2 . 1 Unlock Access 2 | . . . . 1 . . . . . . . 1 . . Seal Access 7 | . . . . 2 . 2 . . . 1 . 1 . 1 Unauthorized Hacks 26 | . 1 . . 14 . 3 . . . 3 . 3 . 2 Terminals 7 | . . . . 4 . 2 . . . . . 1 . . Botnet 4 | . . . . 1 . 2 . . . . . 1 . . Skim 3 | . . . . 3 . . . . . . . . . . Fabricators 4 | . . . . 2 . 1 . . . . . 1 . . Report 3 | . . . . 1 . 1 . . . . . 1 . . Haulers 1 | . . . . 1 . . . . . . . . . . Repair Stations 3 | . . . . 1 . . . . . 1 . 1 . . Patch 3 | . . . . 1 . . . . . 1 . 1 . . Recycling Units 12 | . 1 . . 7 . . . . . 2 . . . 2 Tunnel 2 | . 1 . . 1 . . . . . . . . . . Fedlink 7 | . . . . 5 . . . . . 1 . . . 1 Scrapoids 3 | . . . . 1 . . . . . 1 . . . 1 Scanalyzers . | . . . . . . . . . . . . . . . Garrison Access . | . . . . . . . . . . . . . . . Data Cores Recovered 4 | . . . . 1 . 1 . . . . . 1 . 1 Used 1 | . . . . 1 . . . . . . . . . . Hacking Detections 41 | . 1 . . 10 2 10 . . . 5 . 9 1 3 Full Trace Events 3 | . . . . . . 1 . . . . . 1 1 . Feedback Events . | . . . . . . . . . . . . . . . Feedback Blocked . | . . . . . . . . . . . . . . . Robot Schematics Acquired 7 | . . . . . . . . 7 . . . . . . Robots Built . | . . . . . . . . . . . . . . . Authchips . | . . . . . . . . . . . . . . . Time . | . . . . . . . . . . . . . . . Total Robot Build Rating . | . . . . . . . . . . . . . . . Part Schematics Acquired 13 | . . . . . . . . 13 . . . . . . Parts Built . | . . . . . . . . . . . . . . . Authchips . | . . . . . . . . . . . . . . . Time . | . . . . . . . . . . . . . . . Total Part Build Rating . | . . . . . . . . . . . . . . . Part Studies Acquired 5 | . . . . 3 . 1 . . . . . 1 . . Parts Repaired 1 | . . . . . . . . . . 1 . . . . Time 44 | . . . . . . . . . . 44 . . . . Parts Recycled . | . . . . . . . . . . . . . . . Recycled Matter . | . . . . . . . . . . . . . . . Retrieved Matter . | . . . . . . . . . . . . . . . Retrieved Components . | . . . . . . . . . . . . . . . Parts Scanalyzed . | . . . . . . . . . . . . . . . Part Schematics Acquired . | . . . . . . . . . . . . . . . Parts Damaged . | . . . . . . . . . . . . . . . Bothacking | -11 -10 -10 -9 -6 -6 -6 -6 -6 -5 -5 -5 -5 -5 -5 ------------ Run | Yrd Mat Sub Scr Fac Gar Fac Low Dat Pro Fac Was Fac Gar Fac Used RIF Installer 2 | . . . . . 1 . . . . . . . 1 . Alert ID Control 1 | . . . . . . . . . . . . . 1 . Robots Hacked 1 | . . . . . . 1 . . . . . . . . Non-combat 1 | . . . . . . 1 . . . . . . . . Combat . | . . . . . . . . . . . . . . . Robot Hacks Applied 3 | . . . . . . 3 . . . . . . . . purge_threat 3 | . . . . . . 3 . . . . . . . . Relay Couplers Released 15 | . . . . . 8 . . . . . . . 5 2 Machine Destruction 11 | . . . . . 4 . . . . . . . 5 2 Programmers 4 | . . . . . 4 . . . . . . . . . Attached 2 | . . . . . . 1 . . . . . . 1 . Fabnet Peak Effective % . | . . . . . . . . . . . . . . . Robots Rewired 2 | . . . . . 2 . . . . . . . . . Allies Hacked 2 | . . . . . . . . . . . . 2 . . Hacks Repelled . | . . . . . . . . . . . . . . . Allies | -11 -10 -10 -9 -6 -6 -6 -6 -6 -5 -5 -5 -5 -5 -5 -------- Run | Yrd Mat Sub Scr Fac Gar Fac Low Dat Pro Fac Was Fac Gar Fac Total Allies 42 | . . . . 5 4 . . . . 5 20 . 3 5 Largest Group 25 | . . . . 5 5 3 . . . 5 25 19 3 8 Highest-Rated Group 1039 | . . . . 140 249 249 . . . 241 1039 742 206 438 Highest-Rated Ally 99 | . . . . 28 99 99 . . . 50 50 47 80 80 Initial UFD Resources 50 | . . . . 22 39 39 39 39 43 43 50 50 50 50 Total Orders 6 | . . . . 1 2 . . . . 3 . . . . STAY 1 | . . . . . 1 . . . . . . . . . FOLLOW 1 | . . . . . 1 . . . . . . . . . EXPLORE 4 | . . . . 1 . . . . . 3 . . . . Ally Attacks 446 | . . . . 23 75 48 . . . 11 . 114 21 154 Total Damage 11145 | . . . . 357 1326 1199 . . . 199 . 2182 974 4908 Kills 74 | . . . . 3 13 11 . . . 1 . 14 5 27 Allies Corrupted 5 | . . . . . . . . . . . . 5 . . Allies Melted . | . . . . . . . . . . . . . . . Intel | -11 -10 -10 -9 -6 -6 -6 -6 -6 -5 -5 -5 -5 -5 -5 ------- Run | Yrd Mat Sub Scr Fac Gar Fac Low Dat Pro Fac Was Fac Gar Fac Active Infowar (turns) 1143 | 14 175 29 . 609 . . . . . . 199 1 . 116 Optics 610 | . . . . 609 . . . . . . . 1 . . Sensors 199 | . . . . . . . . . . . 199 . . . IFF 115 | . . . . . . . . . . . . . . 115 Terrain 1 | . . . . . . . . . . . . . . 1 Seismic 218 | 14 175 29 . . . . . . . . . . . . Robot Analysis Total 1 | . . . . 1 . . . . . . . . . . Derelict Logs Recovered 8 | . . 2 5 . . . . . 1 . . . . . Drone Launches 6 | . . . . 2 . . . . . 4 . . . . Drone Recoveries 2 | . . . . . . . . . . 2 . . . . Exploration | -11 -10 -10 -9 -6 -6 -6 -6 -6 -5 -5 -5 -5 -5 -5 ------------- Run | Yrd Mat Sub Scr Fac Gar Fac Low Dat Pro Fac Was Fac Gar Fac Turns Passed 17475 | 55 175 1869 3347 2307 1269 1503 281 103 497 1591 674 1881 1166 757 Spaces Moved 9380 | 24 83 650 1656 1364 624 997 206 77 294 810 301 1026 749 519 Core . | . . . . . . . . . . . . . . . Treads 527 | 1 20 . . 153 150 98 . . . 89 11 5 . . Legs 1221 | 23 . . . . . . . . . . . 90 749 359 Wheels 7632 | . 63 650 1656 1211 474 899 206 77 294 721 290 931 . 160 Hover . | . . . . . . . . . . . . . . . Flight . | . . . . . . . . . . . . . . . Fastest Speed 92 | 120 115 115 195 101 120 120 135 135 135 120 135 92 92 92 Average Speed 150 | 121 125 263 199 129 141 132 135 135 135 143 138 131 98 105 Slowest Speed 295 | 160 160 295 280 240 240 232 135 135 135 220 240 240 176 174 Overloaded Moves . | . . . . . . . . . . . . . . . Propulsion Burnouts . | . . . . . . . . . . . . . . . Robots Hopped . | . . . . . . . . . . . . . . . Potential Cave-ins . | . . . . . . . . . . . . . . . Cave-ins Triggered . | . . . . . . . . . . . . . . . Exploration Rate (%) 49 | 3 19 41 85 48 72 32 29 68 61 32 93 36 92 26 Regions Visited 14 Branch Regions 5 Pre-discovered Areas 7 | . 1 1 2 2 . . . 1 . . . . . . Known Exits Taken 3 | . . . . 1 . 1 . . . . . 1 . . Unknown Exits Taken 7 | 1 1 1 1 . . . 1 1 1 . . . . . Scrap Searched 8 | . . 4 3 . . . . . 1 . . . . . Spaces Dug 136 | . . 1 . 5 34 8 . . . 10 . 26 34 18 Terrain Destroyed 869 | . 2 81 . 29 34 8 . . 30 61 17 140 329 138 Melee 48 | . . 1 . 2 34 2 . . . . . 4 5 . Projectile 206 | . . . . 16 . 6 . . 30 58 17 59 12 8 AOE 613 | . 2 80 . 10 . . . . . 3 . 77 311 130 Terrain Rammed . | . . . . . . . . . . . . . . . Walls Destroyed . | . . . . . . . . . . . . . . . Machines Disabled . | . . . . . . . . . . . . . . . Actions | -11 -10 -10 -9 -6 -6 -6 -6 -6 -5 -5 -5 -5 -5 -5 --------- Run | Yrd Mat Sub Scr Fac Gar Fac Low Dat Pro Fac Was Fac Gar Fac Total 11494 | 36 112 762 1704 1733 845 1098 208 76 338 1068 540 1342 996 636 Wait 832 | . 3 43 . 155 37 28 1 . 16 135 208 123 65 18 Move 9367 | 23 82 649 1655 1364 622 996 205 76 293 810 300 1026 747 519 Hop . | . . . . . . . . . . . . . . . Pick Up 157 | . 2 22 24 32 8 11 1 . 3 14 3 15 9 13 Fast Attach 95 | 1 . 3 . 18 7 4 . . 2 7 4 19 19 11 Attach 65 | 2 . 4 1 9 6 1 . . 3 11 2 10 7 9 Detach 13 | . . 3 . . . 1 . . . 2 1 1 4 1 Swap 118 | . 2 6 1 35 10 9 1 . . 6 6 28 6 8 Drop 165 | 2 . 1 23 41 10 13 . . . 9 9 25 13 19 Fire 517 | 8 22 20 . 74 53 33 . . 21 71 7 73 97 38 Melee 90 | . . 11 . 3 45 2 . . . . . 4 25 . Ram 1 | . 1 . . . . . . . . . . . . . Kick 2 | . . . . . . . . . . . . 2 . . Crush 1 | . . . . . . . . . . 1 . . . . Escape Stasis 54 | . . . . . 32 . . . . 2 . 16 4 . Rewire 14 | . . . . . 14 . . . . . . . . . Trap . | . . . . . . . . . . . . . . . Miscellaneous 3 | . . . . 2 1 . . . . . . . . . Route ------- -11/Scrapyard -10/Materials (discovered 2 exits: [*Min] / *Sub) -10/Subcaves (discovered 2 exits: [*Mat] / *Scr) -9/Scraptown (discovered 2 exits: *Fac x2) -6/Factory (discovered 2 exits: *Fac / Gar) -6/Garrison (discovered 3 exits: *Fac x3) -6/Factory (discovered 3 exits: *Fac / *Low x2) -6/Lower Caves -6/Data Miner -5/Proximity Caves -5/Factory (discovered 2 exits: Upp x2) -5/Waste -5/Factory (discovered 3 exits: [*Fac] / *Upp / Gar) -5/Garrison (discovered 3 exits: *Fac x3) -5/Factory (discovered 1 exit: [*Fac]) History --------- Turn | Location | Event 24 | -11/Scrapyard | Discovered new exit (range 3) 56 | -11/Scrapyard | Entered Materials 57 | -10/Materials | Met a group of wandering Federalists 101 | -10/Materials | Discovered new exit (range 12) 198 | -10/Materials | Destroyed 7 combat bots 225 | -10/Materials | Discovered new exit (range 7) 231 | -10/Materials | Entered Subcaves 232 | -10/Subcaves | Continued accompanying wandering Federalists (2) 232 | -10/Subcaves | Approached by a straggling Scientist 343 | -10/Subcaves | Learned Materials security intel 512 | -10/Subcaves | Disturbed a concealed Subdweller 551 | -10/Subcaves | Build established: Hauler-Mutant 854 | -10/Subcaves | Visited 4L-MR0's lab 994 | -10/Subcaves | Discovered new exit (range 15) 1671 | -10/Subcaves | Shifting Twisted Machinery released Sub. Optics 1867 | -10/Subcaves | Core integrity fell below 50% 2100 | -10/Subcaves | Entered Scraptown 2484 | -9/Scraptown | Visited Junk Repository 2540 | -9/Scraptown | Visited Comm Corps 2804 | -9/Scraptown | Visited Science Testing Area 2843 | -9/Scraptown | Visited CPS Storage 2909 | -9/Scraptown | Visited Observation Area 2927 | -9/Scraptown | Visited UFD Registry 2927 | -9/Scraptown | Registered with UFD as "Nutframe" 2954 | -9/Scraptown | Visited The Evicted 3061 | -9/Scraptown | Scanned Subdweller tech in exchange for log data 3065 | -9/Scraptown | Learned Research terminal intel 3067 | -9/Scraptown | Learned Research security intel 3069 | -9/Scraptown | Learned Factory emergency access door positions 3071 | -9/Scraptown | Learned Factory garrison access intel 3073 | -9/Scraptown | Learned location of Zion (-7) 3094 | -9/Scraptown | Discovered new exit (range 11) 3131 | -9/Scraptown | Guru changed UFD alias to "Shockform" 3945 | -9/Scraptown | Visited Supply Room 3984 | -9/Scraptown | Visited Scrapoid Pod Storage 4050 | -9/Scraptown | Visited Scrap Suit Storage 4075 | -9/Scraptown | Visited Junk Cannon Lab 4270 | -9/Scraptown | Visited Derelict Rescue Squad 4297 | -9/Scraptown | Visited Botcube Research 4305 | -9/Scraptown | Found Lrg. Botcube 4525 | -9/Scraptown | Found Scrap Suit 5246 | -9/Scraptown | Visited LU-1G1's Boring Crew 5336 | -9/Scraptown | Met Optimus 5336 | -9/Scraptown | Accepted into 0bPrime 5443 | -9/Scraptown | Discovered new exit (range 3) 5447 | -9/Scraptown | Entered Factory 5447 | -6/Factory | Evolved 8 slots: Propulsion x2, Utility x2, Weapon x4 5449 | -6/Factory | Loaded intel: 4 garrison access locations 5512 | -6/Factory | Allied Derelicts emerged from ambush trap array 5528 | -6/Factory | Loaded intel: 8 recycling unit locations 5755 | -6/Factory | Build established: Executioner 5766 | -6/Factory | Learned location of Protoforge (-2) 5965 | -6/Factory | Discovered new exit (range 8) 6406 | -6/Factory | Central database locked down 6618 | -6/Factory | Build established: Scavenger-Executioner 7547 | -6/Factory | First assault squad dispatched 7613 | -6/Factory | Scrapoids reinforcements arrived? 7754 | -6/Factory | Identified exit to Garrison 7754 | -6/Factory | Entered Garrison 7754 | -6/Garrison | Accompanied by 3 allies 7829 | -6/Garrison | Rescued a captive Derelict 7829 | -6/Garrison | Rescued a captive Derelict 7889 | -6/Garrison | Triggered checkpoint 7924 | -6/Garrison | Garrison Relay disabled 8088 | -6/Garrison | Build established: Executioner 8176 | -6/Garrison | Triggered checkpoint 8179 | -6/Garrison | Triggered checkpoint 8205 | -6/Garrison | Triggered checkpoint 8216 | -6/Garrison | Triggered checkpoint 8276 | -6/Garrison | Discovered new exit (range 10) 8297 | -6/Garrison | Installed Relay Interface Framework 8366 | -6/Garrison | Triggered checkpoint 8542 | -6/Garrison | Spotted B-75 Beast 8545 | -6/Garrison | Spotted B-75 Beast 8556 | -6/Garrison | Allies destroyed B-75 Beast 8571 | -6/Garrison | Destroyed B-75 Beast 8630 | -6/Garrison | Discovered new exit (range 13) 8638 | -6/Garrison | Triggered checkpoint 8687 | -6/Garrison | Discovered new exit (range 50) 8687 | -6/Garrison | Discovered new exit (range 62) 8687 | -6/Garrison | Discovered new exit (range 18) 8874 | -6/Garrison | Spotted Striker 8908 | -6/Garrison | Destroyed Striker 8933 | -6/Garrison | Lost 4 parts (1n1u2w) 8973 | -6/Garrison | Rewired Striker 8976 | -6/Garrison | Rewired Striker 9023 | -6/Garrison | Entered Factory 9023 | -6/Factory | Accompanied by 3 allies 9216 | -6/Factory | Build established: Scavenger-Executioner 9756 | -6/Factory | Assembled infested ambush trap array 9816 | -6/Factory | Destroyed 10 combat bots 10073 | -6/Factory | First assault squad dispatched 10081 | -6/Factory | Discovered new exit (range 8) 10460 | -6/Factory | Identified exit to Lower Caves 10526 | -6/Factory | Entered Lower Caves 10800 | -6/Lower Caves | A Derelict revealed a hidden shortcut to meet someone special 10807 | -6/Lower Caves | Entered Data Miner 10807 | -6/Data Miner | Discovered new exit (range 6) 10833 | -6/Data Miner | Met Data Miner 10859 | -6/Data Miner | Learned location of Section 7 (-2) 10859 | -6/Data Miner | Acquired the access code to Warlord's prototype stash 10878 | -6/Data Miner | Received God Mode back door access code from Data Miner 10910 | -6/Data Miner | Entered Proximity Caves 10975 | -5/Proximity Caves | Ambushed by research squad 10979 | -5/Proximity Caves | Core integrity fell below 50% 11240 | -5/Proximity Caves | Attracted the attention of an 0b10 checkpoint 11281 | -5/Proximity Caves | Lost 3 parts (3w) 11353 | -5/Proximity Caves | Discovered new exit (range 16) 11407 | -5/Proximity Caves | Entered Factory 11407 | -5/Factory | Evolved 2 slots: Utility x2 11408 | -5/Factory | Identified exit to Upper Caves 11439 | -5/Factory | Garrison activated, responded to threat 11774 | -5/Factory | Repaired Arm. Huge Wheel+ 11901 | -5/Factory | Lost 3 parts (1u2w) 11961 | -5/Factory | Destroyed 11 combat bots 11967 | -5/Factory | Lost 3 parts (1n1u1w) 12244 | -5/Factory | Cargo convoy interrupted 12686 | -5/Factory | Loaded intel: 8 recycling unit locations 12907 | -5/Factory | First assault squad dispatched 12965 | -5/Factory | Scrapoids reinforcements arrived? 12998 | -5/Factory | Sucked down chute 12998 | -5/Factory | Entered Waste 12999 | -5/Waste | Joined by Warlord forces that had cleared the area 13068 | -5/Waste | 5 allies followed down the chute 13147 | -5/Waste | Found Prototype Device 13147 | -5/Waste | Identified Exp. Shield Generator 13304 | -5/Waste | Discovered new exit (range 15) 13664 | -5/Waste | Murdered 5 allies 13672 | -5/Waste | Entered Factory 13672 | -5/Factory | Accompanied by 19 allies 13776 | -5/Factory | Lost 4 allies 14423 | -5/Factory | Discovered new exit (range 9) 14572 | -5/Factory | First assault squad dispatched 14588 | -5/Factory | Incoming assault squad redirected 14676 | -5/Factory | Spotted B-75 Beast 14680 | -5/Factory | Lost 5 allies 14684 | -5/Factory | Destroyed B-75 Beast 15098 | -5/Factory | Lost 4 allies 15260 | -5/Factory | System corruption reached 10% 15303 | -5/Factory | Cargo convoy interrupted 15349 | -5/Factory | Lost 5 parts (2n1u2w) 15352 | -5/Factory | Destroyed 9 combat bots 15360 | -5/Factory | Found Prototype Processor 15360 | -5/Factory | Identified Exp. Core Analyzer 15365 | -5/Factory | Found Prototype Launcher 15365 | -5/Factory | Identified Enh. Gamma Bomb Array 15422 | -5/Factory | Found Prototype Processor 15422 | -5/Factory | Identified Spectral Analyzer 15427 | -5/Factory | Found Exp. Core Analyzer 15488 | -5/Factory | Incoming assault squad redirected 15489 | -5/Factory | Discovered exit to Upper Caves (range 4) 15514 | -5/Factory | High security lockdown imminent 15553 | -5/Factory | Identified exit to Garrison 15553 | -5/Factory | Entered Garrison 15575 | -5/Garrison | Lost 6 parts (1u5w) 15629 | -5/Garrison | Triggered checkpoint 15655 | -5/Garrison | Spotted Striker 15683 | -5/Garrison | Spotted Executioner 15684 | -5/Garrison | Destroyed Striker 15693 | -5/Garrison | Phase Generator disabled 15696 | -5/Garrison | Core integrity fell below 50% 15729 | -5/Garrison | Destroyed Executioner 15741 | -5/Garrison | Lost 4 parts (1n1u2w) 15749 | -5/Garrison | Found Exp. Targeting Computer 15833 | -5/Garrison | Garrison Relay disabled 15860 | -5/Garrison | Build established: Mutant 15899 | -5/Garrison | Triggered checkpoint 15899 | -5/Garrison | Triggered checkpoint 15961 | -5/Garrison | Core integrity fell below 20% 15985 | -5/Garrison | Discovered new exit (range 12) 16012 | -5/Garrison | Spotted B-75 Beast 16042 | -5/Garrison | Triggered checkpoint 16169 | -5/Garrison | Triggered checkpoint 16176 | -5/Garrison | Lost 3 parts (3w) 16281 | -5/Garrison | Triggered checkpoint 16350 | -5/Garrison | Rescued a captive Derelict 16388 | -5/Garrison | Discovered new exit (range 11) 16437 | -5/Garrison | Found embedded Infiltrators 16472 | -5/Garrison | Build established: Scavenger-Executioner 16478 | -5/Garrison | Destroyed 13 combat bots 16593 | -5/Garrison | Discovered new exit (range 10) 16630 | -5/Garrison | Expanded RIF knowledge: Alert ID Control 16641 | -5/Garrison | Triggered checkpoint 16719 | -5/Garrison | Entered Factory 16719 | -5/Factory | Accompanied by 3 allies 16722 | -5/Factory | Garrison activated, responded to threat 16899 | -5/Factory | Loaded intel: 8 recycling unit locations 16920 | -5/Factory | Incoming investigation squad redirected 16997 | -5/Factory | Scrapoids reinforcements arrived? 17005 | -5/Factory | Incoming investigation squad redirected 17019 | -5/Factory | First assault squad dispatched 17044 | -5/Factory | Incoming assault squad redirected 17045 | -5/Factory | Incoming assault squad redirected 17145 | -5/Factory | High security lockdown imminent 17225 | -5/Factory | High security lockdown engaged 17275 | -5/Factory | Garrison activated, responded to threat 17333 | -5/Factory | Destroyed 13 combat bots 17343 | -5/Factory | Lost 4 allies 17454 | -5/Factory | Destroyed 14 combat bots 17460 | -5/Factory | Spotted B-75 Beast 17475 | -5/Factory | Discovered new exit (range 15) 17476 | -5/Factory | Destroyed by Y-64 Sentinel with KE Penetrator Last Messages --------------- 17446_ Massive razor-sharp blades shoot up from within the floor. 17446_ Gauss Rifle+ severed. 17446_ Imp. VSS Leg severed. 17451_ Imp. VSS Leg destroyed. 17451_ Imp. Medium Armor Plating destroyed. 17452_ KE Penetrator+ destroyed. 17453_ Graviton Reactor blown off. 17453_ E-15 Imp destroyed. 17455_ W-25 Informer sends out distress signal. 17461_ System corrupted: FCS attempts to trigger KE Penetrator+. 17461_ System corrupted: KE Penetrator+ misfires. 17461_ Slug penetrates Reinforced Barrier. 17466_ KE Penetrator+ destroyed. 17466_ Knocked back. 17469_ IFF Parser destroyed. 17475_ EXIT=FOUND 17476_ Penetrated by Slug. Map ----- +----------------------------------------------------+ | ?????????????????????????# *%="%/%=%!""%" | | ?????????????????????????" [ " =!*=[""" | | ?????????????????????????#+#+## "= ! | | ??????????????????????????????+ "[% " | | ??????????????????????????"""?# " % " | | ???????????????????????????Y"?# " " | | ??????????????????????????"""?# """""""" | | ??????????????????????????????# ^ | | ??????????????????????????????# ^ | | ??????????????????????????????" ^ | | ??????????????????????????????# ^ | | ??????????????????????????????# *%/=[ | | ??????????????????????????????# ############# | | ??????????????????????????????# T#?????????? | | ??????????????????????????????# ""#?????????? | | ??????????????????????????????# ###?????????? | | ??????????????????????????????# #???????????? | | ??????????????????????????????# #???????????? | | ??????????????????????????????# ##??????????? | | ??????????????????????????????# T#??????????? | | ???????????+######+############ #??????????? | | ?????????? % ##??????????? | | ??????????Y % ### ####???? | | ?????????Y